Workbook

Sheet 2015.2
A1: 5.1. Распределение объема средств учреждения
A2: по источникам их получения | D2: 352
A3: Код по ОКЕИ: тысяча рублей – 384 (с одним десятичным знаком)
A4: Наименование показателей | B4: № строки | C4: Фактически | D4: Фактически
A5: 1 | B5: 2 | C5: 3 | D5: 3
A6: Объем средств учреждения – всего | B6: 01 | C6: =C8+C15 -> 12,831.8 | D6: 12,831.8
A7: (сумма строк 02, 06)
A8: в том числе: | B8: 02 | C8: =C12+C13+C14 -> 8,079.1 | D8: =D12+D13+D14 -> 8,079.1
A9: бюджетные средства – всего
A10: (сумма строк 03-05)
A11: в том числе бюджета:
A12: федерального | B12: 03 | C12: 0.0 | D12: 0.0
A13: субъекта Российской Федерации | B13: 04 | C13: =SUM(D13:D13) -> 3,617.3 | D13: 3,617.3
A14: местного | B14: 05 | C14: =SUM(D14:D14) -> 4,461.8 | D14: =D6-D13-D15 -> 4,461.8
A15: внебюджетные средства | B15: 06 | C15: =C18+C19+C21+C22+C23 -> 4,752.7 | D15: =D19 -> 4,752.7
A16: (сумма строк 07, 08, 10-12)
A17: в том числе средства: | B17: 07
A18: организаций | C18: 0.0 | D18: 0.0
A19: населения | B19: 08 | C19: =SUM(D19:D19) -> 4,752.7 | D19: 4,752.7
A20: из них родительская плата | B20: 09 | C20: =SUM(D20:D20) -> 4,353.3 | D20: 4,353.3
A21: внебюджетных фондов | B21: 10 | C21: 0.0 | D21: 0.0
A22: иностранных источников | B22: 11 | C22: 0.0 | D22: 0.0
A23: другие внебюджетные средства | B23: 12 | C23: =SUM(D23:D23) -> 0.0 | D23: 0.0
A25: 5.2. Расходы учреждения
A26: Код по ОКЕИ: тысяча рублей – 384 (с одним десятичным знаком)
A27: Наименование показателей | B27: № строки | C27: Фактически | D27: Фактически
A28: 1 | B28: 2 | C28: 3 | D28: 3
A29: Расходы учреждения – всего | B29: 01 | C29: =SUM(D29:D30) -> 13,025.0 | D29: 13,025.0
A30: (сумма строк 02, 04-11)
A31: в том числе: | B31: 02 | C31: =SUM(D31:D32) -> 7,573.8 | D31: 7,573.8
A32: оплата труда
A33: из нее: | B33: 03 | C33: =SUM(D33:D35) -> 4,952.3 | D33: 4,952.3
A34: педагогического персонала
A35: (без совместителей)
A36: начисления на оплату труда | B36: 04 | C36: =SUM(D36:D36) -> 1,706.9 | D36: 1,706.9
A37: питание | B37: 05 | C37: =SUM(D37:D37) -> 1,994.1 | D37: 1,994.1
A38: услуги связи | B38: 06 | C38: =SUM(D38:D38) -> 4.0 | D38: 4.0
A39: транспортные услуги | B39: 07 | C39: =SUM(D39:D39) -> 0.0 | D39: 0.0
A40: коммунальные услуги | B40: 08 | C40: =SUM(D40:D40) -> 712.0 | D40: 712.0
A41: арендная плата за пользование имуществом | B41: 09 | C41: =SUM(D41:D41) -> 0.0 | D41: 0.0
A42: услуги по содержанию имущества | B42: 10 | C42: =SUM(D42:D42) -> 626.9 | D42: 626.9
A43: прочие затраты | B43: 11 | C43: =SUM(D43:D43) -> 407.4 | D43: =D29-D31-D36-D37-D38-D39-D40-D41-D42 -> 407.4
A44: Инвестиции, направленные на приобретение основных фондов | B44: 12 | C44: =SUM(D44:D44) -> 137.8 | D44: 137.8

Sheet Лист3
